Workbook

Sheet اطلاعات پایه (hidden)
C2: آیتم های حقوق سال 1405 | D2: ساعتی (ریال) | E2: روزانه (ریال) | F2: ماهانه (ریال)
C3: حداقل دستمزد | E3: 5541850 | F3: =E3*30 -> 166255500
C4: بن کارگری | F4: 22000000
C5: حق مسکن | F5: 30000000
C6: حق تاهل | F6: 5000000
C7: حق اولاد | F7: =حداقل_دستمزد*3 -> 16625550
C8: پایه سنوات (با یک سال سابقه) | E8: 116666 | F8: =E8*30 -> 3499980
C9: افزایش ساسر سطوح | F9: 519549+%45
C10: حق اولاد یک فرزند | F10: =F3*10%*1 -> 16625550
C11: حق اولاد دو فرزند | F11: =F3*10%*2 -> 33251100
C12: حق اولاد سه فرزند | F12: =F3*10%*3 -> 49876650
C13: حق اولاد | F13: =حداقل_دستمزد*3 -> 16625550
C14: مزد ساعتی | D14: =E3/7.33 -> 756050.4775
C15: اضافه کاری هر ساعت | D15: 1058470
C16: شب کاری هر ساعت | D16: 254618
C17: جمعه کاری هر ساعت | D17: 2216740
C18: صبح و عصر 10% | D18: =F3*10% -> 16625550
C19: صبح، عصر و شب 15% | D19: =F3*15% -> 24938325
C20: صبح، عصر یا عصر، شب 22.5% | D20: =F3*22.5% -> 37407487.5
C21: عیدی و پارداش ماهانه | F21: =(E3*2)/12 -> 923641.6667
C22: سنوات ماهانه | F22: =F3/12 -> 13854625
C23: مرخصی کارگر مجرد | E23: =SUM(F3:F5)/30 -> 7275183.333
C24: مرخصی کارگر متاهل با یک فرزند | E24: =SUM(F3:F7)/30 -> 7996035
C25: حق بیمه سهم کارگر (7%) | F25: =(F3+F4+F5+F6)*7% -> 15627885
C26: حق بیمه سهم کارفرما (23%) | F26: =(F3+F4+F5+F6)*23% -> 51348765

Sheet محاسبات حقوق
B3: محاسبه حقوق و دستمزد سال 1405
B5: نکته : تنها فیلدهای با رنگ خاکستری باید از طریق کاربر تکمیل شوند.
B7: فروردین
C10: روزهای کاری | E10: = | F10: روزهای تعطیلات رسمی | H10: - | I10: روزهای جمعه | K10: - | L10: روزهای ماه
C11: =IF(L11="","",L11-I11-F11) -> 20 | E11: = | F11: =VLOOKUP(B7,'جدول موظفی'!B3:G14,4,0) -> 7 | H11: - | I11: =VLOOKUP(B7,'جدول موظفی'!B3:G14,3,0) -> 4 | K11: - | L11: =VLOOKUP(B7,'جدول موظفی'!B3:G14,2,0) -> 31
F13: ساعت موظفی | H13: = | I13: ساعت متوسط کاری | K13: × | L13: روزهای کاری
F15: =IF(L15="","",ROUND(L15*I15,0)) -> 147 | H15: = | I15: =IF(L15="","",7.33) -> 7.33 | K15: × | L15: =C11 -> 20
C17: روزهای کارکرد | F17: ساعت اضافه کاری | H17: = | I17: ساعت موظفی | K17: - | L17: ساعت کارکرد
C18: =IF(L18="","",IF(L18<I18,ROUND((L18/I18)*L11,0),L11)) -> 31 | F18: =IF(L18="","",IF((L18-I18)<0,0,L18-I18)) -> 73 | H18: = | I18: =F15 -> 147 | K18: - | L18: 220
C20: سال استخدام | F20: وضعیت تاهل | I20: تعداد فرزند | L20: سابقه بیمه (ماه)
C21: 1404 | F21: متاهل | I21: 1 | L21: 25
C23: پایه سنوات ماهانه | F23: پایه سنوات روزانه | I23: حقوق پایه ماهانه | L23: دستمزد روزانه
C24: =F24*C18 -> 5166677 | F24: =VLOOKUP(C21,'پایه سنوات'!AG:AH,2,0) -> 166667 | I24: =L24*C18 -> 171797350 | L24: ='اطلاعات پایه'!E3 -> 5541850
C26: حق اولاد | F26: حق تاهل | I26: بن خواروبار | L26: حق مسکن
C27: =ROUND(IF(C18="","",IF(L21>24,IF(C18<L11,(('اطلاعات پایه'!E3*3*I21)/L11)*C18,'اطلاعات پایه'!E3*3*I21),0)),0) -> 16625550 | F27: =ROUND(IF(C18="","",IF(F21="مجرد",0,IF(F21="متاهل", IF(C18<L11,('اطلاعات پایه'!F6/L11)*C18,'اطلاعات پایه'!F6)))),0) -> 5000000 | I27: =ROUND(IF(C18="","",+IF(C18<L11,('اطلاعات پایه'!F4/L11)*C18,'اطلاعات پایه'!F4)),0) -> 22000000 | L27: =ROUND(IF(C18="","",IF(C18<L11,('اطلاعات پایه'!F5/L11)*C18,'اطلاعات پایه'!F5)),0) -> 30000000
C29: مزد ثابت روزانه | F29: حق ایاب و ذهاب | I29: حق مسئولیت | L29: حق جذب
C30: =((L24*L11)+C24+L30+I30)/L11 -> 5708517 | F30: 0 | I30: 0 | L30: 0
C32: حقوق خالص | F32: کسورات | I32: حقوق ناخالص | L32: اضافه کاری
C33: =I33-F33 -> 308232792 | F33: =I36 -> 21948932 | I33: =I24+C24+L27+I27+F27+C27+L30+I30+F30+L33 -> 330181724 | L33: =ROUND(IF(C18="","",IF(F18>0,(C30/7.33)*F18*1.4,0)),0) -> 79592147
C35: حق بیمه بیکاری (3%) | F35: حق بیمه سهم کارفرما (20%) | I35: حق بیمه سهم کارگر (7%) | L35: حقوق مشمول بیمه
C36: =ROUND(L36*3%,0) -> 9406685 | F36: =ROUND(L36*20%,0) -> 62711235 | I36: =ROUND(L36*7%,0) -> 21948932 | L36: =I33-C27 -> 313556174
C38: شناسنامه | F38: بازخرید ایام مرخصی (روزانه) | I38: سنوات پایان خدمت (سالانه) | L38: عیدی و پاداش (سالانه)
C39: قانون | F39: =((L27+I27+F27+C27)/30)+C30+((L30/L11)*30) -> 8162702 | I39: =C30*30 -> 171255510 | L39: =IF((C30*60)>(L24*90),(L24*90),(C30*60)) -> 342511020

Sheet پایه سنوات (hidden)
A1: جدول پایه سنوات تجمیعی 30 سال گذشته با اعمال پایه های سنواتی گروه 1 ( از سال 1376 لغایت 1405) | AG1: سال | AH1: مبلغ
B2: 1376 | C2: 1377 | D2: 1378 | E2: 1379 | F2: 1380 | G2: 1381 | H2: 1382 | I2: 1383 | J2: 1384 | K2: 1385 | L2: 1386 | M2: 1387 | N2: 1388 | O2: 1389 | P2: 1390 | Q2: 1391 | R2: 1392 | S2: 1393 | T2: 1394 | U2: 1395 | V2: 1396 | W2: 1397 | X2: 1398 | Y2: 1399 | Z2: 1400 | AA2: 1401 | AB2: 1402 | AC2: 1403 | AD2: 1404 | AE2: 1405 | AG2: =TRANSPOSE(B2:AE2) -> 1376 | AH2: =TRANSPOSE(B3:AE3) -> 1929877
A3: 1405 | B3: 1929877 | C3: 1925114 | D3: 1919514 | E3: 1912667 | F3: 1912667 | G3: 1912667 | H3: 1912667 | I3: 1912667 | J3: 1912667 | K3: 1912667 | L3: 1891001 | M3: 1870314 | N3: 1850646 | O3: 1821216 | P3: 1793460 | Q3: 1761036 | R3: 1725649 | S3: 1673004 | T3: 1583019 | U3: 1504089 | V3: 1384264 | W3: 1275730 | X3: 1143905 | Y3: 980143 | Z3: 798186 | AA3: 600404 | AB3: 436949 | AC3: 302969 | AD3: 166667 | AE3: 0 | AG3: 1377 | AH3: 1925114
A4: 1404 | B4: 1216007 | C4: 1212722 | D4: 1208860 | E4: 1204138 | F4: 1204138 | G4: 1204138 | H4: 1204138 | I4: 1204138 | J4: 1204138 | K4: 1204138 | L4: 1189196 | M4: 1174929 | N4: 1161365 | O4: 1141068 | P4: 1121926 | Q4: 1099565 | R4: 1075160 | S4: 1038853 | T4: 976794 | U4: 922360 | V4: 839722 | W4: 764871 | X4: 673957 | Y4: 561018 | Z4: 435530 | AA4: 299129 | AB4: 186401 | AC4: 94000 | AD4: 0 | AG4: 1378 | AH4: 1919514
A5: 1403 | B5: 850005 | C5: 847516 | D5: 844590 | E5: 841013 | F5: 841013 | G5: 841013 | H5: 841013 | I5: 841013 | J5: 841013 | K5: 841013 | L5: 829693 | M5: 818885 | N5: 808609 | O5: 793233 | P5: 778731 | Q5: 761791 | R5: 743302 | S5: 715797 | T5: 668783 | U5: 627545 | V5: 564940 | W5: 508235 | X5: 439361 | Y5: 353801 | Z5: 258734 | AA5: 155400 | AB5: 70000 | AC5: 0 | AG5: 1379 | AH5: 1912667
A6: 1402 | B6: 639348 | C6: 637308 | D6: 634910 | E6: 631978 | F6: 631978 | G6: 631978 | H6: 631978 | I6: 631978 | J6: 631978 | K6: 631978 | L6: 622699 | M6: 613840 | N6: 605417 | O6: 592814 | P6: 580927 | Q6: 567042 | R6: 551887 | S6: 529342 | T6: 490806 | U6: 457004 | V6: 405688 | W6: 359209 | X6: 302755 | Y6: 232624 | Z6: 154700 | AA6: 70000 | AB6: 0 | AG6: 1380 | AH6: 1912667
A7: 1401 | B7: 470535 | C7: 468849 | D7: 466867 | E7: 464444 | F7: 464444 | G7: 464444 | H7: 464444 | I7: 464444 | J7: 464444 | K7: 464444 | L7: 456776 | M7: 449454 | N7: 442493 | O7: 432077 | P7: 422253 | Q7: 410778 | R7: 398253 | S7: 379621 | T7: 347773 | U7: 319838 | V7: 277428 | W7: 239015 | X7: 192359 | Y7: 134400 | Z7: 70000 | AA7: 0 | AG7: 1381 | AH7: 1912667
A8: 1400 | B8: 290243 | C8: 289021 | D8: 287585 | E8: 285829 | F8: 285829 | G8: 285829 | H8: 285829 | I8: 285829 | J8: 285829 | K8: 285829 | L8: 280273 | M8: 274967 | N8: 269923 | O8: 262375 | P8: 255256 | Q8: 246941 | R8: 237865 | S8: 224363 | T8: 201285 | U8: 181042 | V8: 150310 | W8: 122475 | X8: 88666 | Y8: 46667 | Z8: 0 | AG8: 1382 | AH8: 1912667
A9: 1399 | B9: 193315 | C9: 192345 | D9: 191205 | E9: 189812 | F9: 189812 | G9: 189812 | H9: 189812 | I9: 189812 | J9: 189812 | K9: 189812 | L9: 185402 | M9: 181191 | N9: 177188 | O9: 171197 | P9: 165547 | Q9: 158948 | R9: 151745 | S9: 141029 | T9: 122713 | U9: 106647 | V9: 82257 | W9: 60166 | X9: 33333 | Y9: 0 | AG9: 1383 | AH9: 1912667
A10: 1398 | B10: 139115 | C10: 138271 | D10: 137280 | E10: 136069 | F10: 136069 | G10: 136069 | H10: 136069 | I10: 136069 | J10: 136069 | K10: 136069 | L10: 132234 | M10: 128572 | N10: 125091 | O10: 119882 | P10: 114969 | Q10: 109230 | R10: 102967 | S10: 93649 | T10: 77722 | U10: 63751 | V10: 42543 | W10: 23333 | X10: 0 | AG10: 1384 | AH10: 1912667
A11: 1397 | B11: 102462 | C11: 101715 | D11: 100838 | E11: 99766 | F11: 99766 | G11: 99766 | H11: 99766 | I11: 99766 | J11: 99766 | K11: 99766 | L11: 96373 | M11: 93132 | N11: 90051 | O11: 85442 | P11: 81094 | Q11: 76015 | R11: 70473 | S11: 62227 | T11: 48132 | U11: 35768 | V11: 17000 | W11: 0 | AG11: 1385 | AH11: 1912667
A12: 1396 | B12: 77412 | C12: 76735 | D12: 75941 | E12: 74970 | F12: 74970 | G12: 74970 | H12: 74970 | I12: 74970 | J12: 74970 | K12: 74970 | L12: 71896 | M12: 68961 | N12: 66170 | O12: 61995 | P12: 58057 | Q12: 53456 | R12: 48436 | S12: 40967 | T12: 28200 | U12: 17000 | V12: 0 | AG12: 1386 | AH12: 1891001
A13: 1395 | B13: 53940 | C13: 53335 | D13: 52626 | E13: 51759 | F13: 51759 | G13: 51759 | H13: 51759 | I13: 51759 | J13: 51759 | K13: 51759 | L13: 49015 | M13: 46394 | N13: 43902 | O13: 40174 | P13: 36658 | Q13: 32550 | R13: 28068 | S13: 21399 | T13: 10000 | U13: 0 | AG13: 1387 | AH13: 1870314
A14: 1394 | B14: 38544 | C14: 38014 | D14: 37392 | E14: 36631 | F14: 36631 | G14: 36631 | H14: 36631 | I14: 36631 | J14: 36631 | K14: 36631 | L14: 34224 | M14: 31925 | N14: 29739 | O14: 26469 | P14: 23385 | Q14: 19781 | R14: 15850 | S14: 10000 | T14: 0 | AG14: 1388 | AH14: 1850646
A15: 1393 | B15: 24397 | C15: 23944 | D15: 23412 | E15: 22762 | F15: 22762 | G15: 22762 | H15: 22762 | I15: 22762 | J15: 22762 | K15: 22762 | L15: 20704 | M15: 18739 | N15: 16871 | O15: 14076 | P15: 11440 | Q15: 8360 | R15: 5000 | S15: 0 | AG15: 1389 | AH15: 1821216
A16: 1392 | B16: 17319 | C16: 16914 | D16: 16439 | E16: 15859 | F16: 15859 | G16: 15859 | H16: 15859 | I16: 15859 | J16: 15859 | K16: 15859 | L16: 14021 | M16: 12267 | N16: 10599 | O16: 8104 | P16: 5750 | Q16: 3000 | R16: 0 | AG16: 1390 | AH16: 1793460
A17: 1391 | B17: 13017 | C17: 12649 | D17: 12217 | E17: 11690 | F17: 11690 | G17: 11690 | H17: 11690 | I17: 11690 | J17: 11690 | K17: 11690 | L17: 10019 | M17: 8425 | N17: 6908 | O17: 4640 | P17: 2500 | Q17: 0 | AG17: 1391 | AH17: 1761036
A18: 1390 | B18: 9829 | C18: 9485 | D18: 9081 | E18: 8589 | F18: 8589 | G18: 8589 | H18: 8589 | I18: 8589 | J18: 8589 | K18: 8589 | L18: 7027 | M18: 5537 | N18: 4120 | O18: 2000 | P18: 0 | AG18: 1392 | AH18: 1725649
A19: 1389 | B19: 7386 | C19: 7061 | D19: 6680 | E19: 6216 | F19: 6216 | G19: 6216 | H19: 6216 | I19: 6216 | J19: 6216 | K19: 6216 | L19: 4742 | M19: 3337 | N19: 2000 | O19: 0 | AG19: 1393 | AH19: 1673004
A20: 1388 | B20: 5034 | C20: 4730 | D20: 4374 | E20: 3940 | F20: 3940 | G20: 3940 | H20: 3940 | I20: 3940 | J20: 3940 | K20: 3940 | L20: 2562 | M20: 1250 | N20: 0 | AG20: 1394 | AH20: 1583019
A21: 1387 | B21: 3604 | C21: 3314 | D21: 2975 | E21: 2562 | F21: 2562 | G21: 2562 | H21: 2562 | I21: 2562 | J21: 2562 | K21: 2562 | L21: 1250 | M21: 0 | AG21: 1395 | AH21: 1504089
A22: 1386 | B22: 2242 | C22: 1966 | D22: 1643 | E22: 1250 | F22: 1250 | G22: 1250 | H22: 1250 | I22: 1250 | J22: 1250 | K22: 1250 | L22: 0 | AG22: 1396 | AH22: 1384264
A23: 1385 | B23: 6356 | C23: 6105 | D23: 5812 | E23: 5330 | F23: 4763 | G23: 4093 | H23: 3312 | I23: 2322 | J23: 1200 | K23: 0 | AG23: 1397 | AH23: 1275730
A24: 1384 | B24: 4687 | C24: 4459 | D24: 4192 | E24: 3754 | F24: 3239 | G24: 2630 | H24: 1920 | I24: 1020 | J24: 0 | AG24: 1398 | AH24: 1143905
A25: 1383 | B25: 3667 | C25: 3439 | D25: 3172 | E25: 2734 | F25: 2219 | G25: 1610 | H25: 900 | I25: 0 | AG25: 1399 | AH25: 980143
A26: 1382 | B26: 2767 | C26: 2539 | D26: 2272 | E26: 1762 | F26: 1319 [image] | G26: 710 | H26: 0 | AG26: 1400 | AH26: 798186
A27: 1381 | B27: 1959 | C27: 1742 | D27: 1488 | E27: 1071 | F27: 580 | G27: 0 | AG27: 1401 | AH27: 600404
A28: 1380 | B28: 1320 | C28: 1112 | D28: 869 | E28: 470 | F28: 0 | AG28: 1402 | AH28: 436949
A29: 1379 | B29: 809 | C29: 611 | D29: 380 | E29: 0 | AG29: 1403 | AH29: 302969
A30: 1378 | B30: 390 | C30: 210 | D30: 0 | AG30: 1404 | AH30: 166667
A31: 1377 | B31: 150 | C31: 0 | AG31: 1405 | AH31: 0
A32: 1376 | B32: 0
B33: 1376 | C33: 1377 | D33: 1378 | E33: 1379 | F33: 1380 | G33: 1381 | H33: 1382 | I33: 1383 | J33: 1384 | K33: 1385 | L33: 1386 | M33: 1387 | N33: 1388 | O33: 1389 | P33: 1390 | Q33: 1391 | R33: 1392 | S33: 1393 | T33: 1394 | U33: 1395 | V33: 1396 | W33: 1397 | X33: 1398 | Y33: 1399 | Z33: 1400 | AA33: 1401 | AB33: 1402 | AC33: 1403 | AD33: 1404 | AE33: 1405

Sheet جدول مالیات حقوق (hidden)
B2: پلکان مالیات حقوق (ماهیانه) 1405
B3: ردیف | C3: شروع بازه | D3: پایان بازه | E3: نرخ مالیات | F3: مبلغ مالیات پله | G3: مالیات تجمیعی
B4: 1 | C4: 0 | D4: 400000000 | E4: 0 | F4: =(D4-C4)*E4 -> 0 | G4: 0
B5: 2 | C5: =D4 -> 400000000 | D5: 800000000 | E5: 0.1 | F5: =(D5-C5)*E5 -> 40000000 | G5: =G4+F5 -> 40000000
B6: 3 | C6: =D5 -> 800000000 | D6: 1000000000 | E6: 0.15 | F6: =(D6-C6)*E6 -> 30000000 | G6: =G5+F6 -> 70000000
B7: 4 | C7: =D6 -> 1000000000 | D7: 12000000000 | E7: 0.2 | F7: 2200000000 | G7: 2270000000
B8: 5 | C8: =D7 -> 12000000000 | D8: 14000000000 | E8: 0.25 | F8: 500000000 | G8: 2770000000
B9: 6 | C9: =D8 -> 14000000000 | D9: 999999999999 | E9: 0.3 | F9: 2.958e+11 | G9: 2.9857e+11
B11: پلکان مالیات حقوق (سالیانه) 1405
B12: ردیف | C12: شروع بازه | D12: پایان بازه | E12: نرخ مالیات | F12: مبلغ مالیات پله | G12: مالیات تجمیعی
B13: 1 | C13: 0 | D13: 4800000000 | E13: 0 | F13: =(D13-C13)*E13 -> 0 | G13: 0
B14: 2 | C14: =D13 -> 4800000000 | D14: 9600000000 | E14: 0.1 | F14: =(D14-C14)*E14 -> 480000000 | G14: =G13+F14 -> 480000000
B15: 3 | C15: =D14 -> 9600000000 | D15: 12000000000 | E15: 0.15 | F15: =(D15-C15)*E15 -> 360000000 | G15: =G14+F15 -> 840000000
B16: 4 | C16: =D15 -> 12000000000 | D16: 14400000000 | E16: 0.2 | F16: 480000000 | G16: 1320000000
B17: 5 | C17: =D16 -> 14400000000 | D17: 16800000000 | E17: 0.25 | F17: 600000000 | G17: 1920000000
B18: 6 | C18: =D17 -> 16800000000 | D18: 999999999999 | E18: 0.3 | F18: 2.9496e+11 | G18: 2.9688e+11

Sheet جدول موظفی (hidden)
B2: ماه | C2: تعداد روز ماه | D2: تعداد روز جمعه | E2: تعداد روز تعطیلات رسمی | F2: روزهای کاری | G2: ساعت موظفی سال 1405
B3: فروردین | C3: 31 | D3: 4 | E3: 7 | F3: =C3-D3-E3 -> 20 | G3: =F3*7.33 -> 146.6
B4: اردیبهشت | C4: 31 | D4: 4 | E4: 0 | F4: =C4-D4-E4 -> 27 | G4: =F4*7.33 -> 197.91
B5: خرداد | C5: 31 | D5: 5 | E5: 2 | F5: =C5-D5-E5 -> 24 | G5: =F5*7.33 -> 175.92
B6: تیر | C6: 31 | D6: 4 | E6: 2 | F6: 25 | G6: 183.25
B7: مرداد | C7: 31 | D7: 5 | E7: 3 | F7: 23 | G7: 168.59
B8: شهریور | C8: 31 | D8: 4 | E8: 1 | F8: 26 | G8: 190.58
B9: مهر | C9: 30 | D9: 4 | E9: 0 | F9: 26 | G9: 190.58
B10: آبان | C10: 30 | D10: 5 | E10: 0 | F10: 25 | G10: 183.25
B11: آذر | C11: 30 | D11: 4 | E11: 0 | F11: 26 | G11: 190.58
B12: دی | C12: 30 | D12: 4 | E12: 2 | F12: 24 | G12: 175.92
B13: بهمن | C13: 30 | D13: 5 | E13: 2 | F13: 23 | G13: 168.59
B14: اسفند | C14: 29 | D14: 4 | E14: 4 | F14: 21 | G14: 153.93

Sheet Sheet4 (hidden)
A1: سال | B1: حداقل مزد روزانه | C1: درصد افزایش مزد | D1: مبلغ ثابت | E1: افزایش پایه سنوات | F1: مزد ثابت در سال 1372 | G1: مزد ثابت در سال 1373 | H1: مزد ثابت در سال 1374 | I1: مزد ثابت در سال 1375 | J1: مزد ثابت در سال 1376 | K1: مزد ثابت در سال 1377 | L1: مزد ثابت در سال 1378 | M1: مزد ثابت در سال 1379 | N1: مزد ثابت در سال 1380 | O1: مزد ثابت در سال 1381 | P1: مزد ثابت در سال 1382 | Q1: مزد ثابت در سال 1383 | R1: مزد ثابت در سال 1384 | S1: مزد ثابت در سال 1385 | T1: مزد ثابت در سال 1386 | U1: مزد ثابت در سال 1387 | V1: مزد ثابت در سال 1388 | W1: مزد ثابت در سال 1389 | X1: مزد ثابت در سال 1390 | Y1: مزد ثابت در سال 1391 | Z1: مزد ثابت در سال 1392 | AA1: مزد ثابت در سال 1393 | AB1: مزد ثابت در سال 1394 | AC1: مزد ثابت در سال 1395 | AD1: مزد ثابت در سال 1396 | AE1: مزد ثابت در سال 1397 | AF1: مزد ثابت در سال 1398 | AG1: مزد ثابت در سال 1399 | AH1: مزد ثابت در سال 1400 | AI1: مزد ثابت در سال 1401 | AJ1: مزد ثابت در سال 1402 | AK1: مزد ثابت در سال 1405
A2: 1372 | B2: 2994 | C2: 0.1 | D2: 500 | E2: 60 | F2: 2994 | G2: =G3+E3 -> 3974 | H2: 5521.4 | I2: 7232.898 | J2: 9006.998744 | K2: 10823.29351 | L2: 13197.95221 | M2: 16897.74744 | N2: 21112.63481 | O2: 26142.70337 | P2: 32159.83854 | Q2: 40147.83854 | R2: 46497.83854 | S2: 57397.6224 | T2: 64387.38464 | U2: 78006.75387 | V2: 94137.09156 | W2: 109737.688 | X2: 121361.9492 | Y2: 144450.2857 | Z2: 181380.3143 | AA2: 229255.952 | AB2: 278229.4638 | AC2: 327181.5887 | AD2: 390211.3794 | AE2: 476001.3629 | AF2: 648263.54 | AG2: 835169.071 | AH2: 1181765.029 | AI2: 1872557.741 | AJ2: 2419390.866 | AK2: 4696756.371
A3: 1373 | B3: =ROUNDUP(B2+(B2*C3)+D3,0) -> 3894 | C3: 0.1 | D3: 600 | E3: 80 | G3: 3894 | H3: 5433.4 | I3: 7138.738 | J3: 8891.370264 | K3: 10686.27376 | L3: 13033.52852 | M3: 16716.88137 | N3: 20922.72544 | O3: 25944.24808 | P3: 31951.46048 | Q3: 39939.46048 | R3: 46289.46048 | S3: 57168.40653 | T3: 64135.24719 | U3: 77742.00954 | V3: 93859.11002 | W3: 109440.2477 | X3: 121046.6626 | Y3: 144112.929 | Z3: 181009.2219 | AA3: 228840.3285 | AB3: 277743.1843 | AC3: 326627.2301 | AD3: 389590.4978 | AE3: 475315.9095 | AF3: 647488.9778 | AG3: 834278.3244 | AH3: 1180642.689 | AI3: 1871008.911 | AJ3: 2417516.782 | AK3: 4693738.345
A4: 1374 | B4: =(B3+(B3*C4)+D4) -> 5333.4 | C4: 0.1 | D4: 1050 | E4: 100 | H4: 5333 | I4: 7031.31 | J4: 8759.44868 | K4: 10529.94669 | L4: 12845.93602 | M4: 16510.52963 | N4: 20706.05611 | O4: 25717.82863 | P4: 31713.72006 | Q4: 39701.72006 | R4: 46051.72006 | S4: 56906.89207 | T4: 63847.58128 | U4: 77439.96034 | V4: 93541.95836 | W4: 109100.8954 | X4: 120686.9492 | Y4: 143728.0356 | Z4: 180585.8392 | AA4: 228366.1399 | AB4: 277188.3836 | AC4: 325994.7574 | AD4: 388882.1282 | AE4: 474533.8696 | AF4: 646605.2726 | AG4: 833262.0635 | AH4: 1179362.2 | AI4: 1869241.836 | AJ4: 2415378.622 | AK4: 4690295.052
A5: 1375 | B5: =(B4+(B4*C5)+D5) -> 6906.738 | C5: 0.07 | D5: 1200 | E5: 125 | I5: 6907 | J5: 8606.796 | K5: 10349.05326 | L5: 12628.86391 | M5: 16271.7503 | N5: 20455.33782 | O5: 25455.82802 | P5: 31438.61942 | Q5: 39426.61942 | R5: 45776.61942 | S5: 56604.28136 | T5: 63514.7095 | U5: 77090.44497 | V5: 93174.96722 | W5: 108708.2149 | X5: 120270.7078 | Y5: 143282.6574 | Z5: 180095.9231 | AA5: 227817.4339 | AB5: 276546.3976 | AC5: 325262.8933 | AD5: 388062.4405 | AE5: 473628.9343 | AF5: 645582.6958 | AG5: 832086.1002 | AH5: 1177880.486 | AI5: 1867197.071 | AJ5: 2412904.456 | AK5: 4686310.656
A6: 1376 | B6: 8481.474264 | C6: 0.228 | D6: 0 | E6: 125 | J6: 8482 | K6: 10201.17 | L6: 12451.404 | M6: 16076.5444 | N6: 20250.37162 | O6: 25241.63834 | P6: 31213.72026 | Q6: 39201.72026 | R6: 45551.72026 | S6: 56356.89229 | T6: 63242.58151 | U6: 76804.71059 | V6: 92874.94612 | W6: 108387.1923 | X6: 119930.4239 | Y6: 142918.5536 | Z6: 179695.4089 | AA6: 227368.858 | AB6: 276021.5638 | AC6: 324664.5828 | AD6: 387392.3327 | AE6: 472889.1353 | AF6: 644746.7229 | AG6: 831124.7313 | AH6: 1176669.162 | AI6: 1865525.443 | AJ6: 2410881.786 | AK6: 4683053.348
A7: 1377 | B7: 10050.547 | C7: 0.185 | D7: 0 | E7: 150 | K7: 10051 | L7: 12271.2 | M7: 15878.32 | N7: 20042.236 | O7: 25024.13662 | P7: 30985.34345 | Q7: 38973.34345 | R7: 45323.34345 | S7: 56105.6778 | T7: 62966.24558 | U7: 76514.55785 | V7: 92570.28575 | W7: 108061.2057 | X7: 119584.8781 | Y7: 142548.8196 | Z7: 179288.7015 | AA7: 226913.3457 | AB7: 275488.6145 | AC7: 324057.0205 | AD7: 386711.863 | AE7: 472137.8967 | AF7: 643897.8233 | AG7: 830148.4968 | AH7: 1175439.106 | AI7: 1863827.966 | AJ7: 2408827.839 | AK7: 4679745.672
A8: 1378 | B8: 12060.6564 | C8: 0.2 | D8: 0 | E8: 210 | L8: 12061 | M8: 15647.1 | N8: 19799.455 | O8: 24770.43048 | P8: 30718.952 | Q8: 38706.952 | R8: 45056.952 | S8: 55812.6472 | T8: 62643.91192 | U8: 76176.10751 | V8: 92214.91289 | W8: 107680.9568 | X8: 119181.8142 | Y8: 142117.5412 | Z8: 178814.2953 | AA8: 226382.0108 | AB8: 274866.9526 | AC8: 323348.3259 | AD8: 385918.1251 | AE8: 471261.6101 | AF8: 642907.6194 | AG8: 829009.7623 | AH8: 1174004.3 | AI8: 1861847.935 | AJ8: 2406432.001 | AK8: 4675887.414
A9: 1379 | B9: 15266.72204 | C9: 0.1 | D9: 2000 | E9: 380 | M9: 15267 | N9: 19400.35 | O9: 24353.36575 | P9: 30281.03404 | Q9: 38269.03404 | R9: 44619.03404 | S9: 55330.93744 | T9: 62250 | U9: 75762.5 | V9: 91780.625 | W9: 107216.2688 | X9: 118689.2449 | Y9: 141590.492 | Z9: 178234.5412 | AA9: 225732.6862 | AB9: 274107.2428 | AC9: 322482.2568 | AD9: 384948.1276 | AE9: 470190.7329 | AF9: 641697.5282 | AG9: 827618.1574 | AH9: 1172250.878 | AI9: 1859428.212 | AJ9: 2403504.137 | AK9: 4671172.382
A10: 1380 | B10: 18930.05815 | C10: 0.05 | D10: 2900 | E10: 470 | N10: 18930 | O10: 23861.85 | P10: 29764.9425 | Q10: 37752.9425 | R10: 44102.9425 | S10: 54763.23675 | T10: 62250 | U10: 75762.5 | V10: 91780.625 | W10: 107216.2688 | X10: 118689.2449 | Y10: 141590.492 | Z10: 178234.5412 | AA10: 225732.6862 | AB10: 274107.2428 | AC10: 322482.2568 | AD10: 384948.1276 | AE10: 470190.7329 | AF10: 641697.5282 | AG10: 827618.1574 | AH10: 1172250.878 | AI10: 1859428.212 | AJ10: 2403504.137 | AK10: 4671172.382
A11: 1381 | B11: 23281.91076 | C11: 0.045 | D11: 3500 | E11: 580 | O11: 23282 | P11: 29156.1 | Q11: 37144.1 | R11: 43494.1 | S11: 54093.51 | T11: 62250 | U11: 75762.5 | V11: 91780.625 | W11: 107216.2688 | X11: 118689.2449 | Y11: 141590.492 | Z11: 178234.5412 | AA11: 225732.6862 | AB11: 274107.2428 | AC11: 322482.2568 | AD11: 384948.1276 | AE11: 470190.7329 | AF11: 641697.5282 | AG11: 827618.1574 | AH11: 1172250.878 | AI11: 1859428.212 | AJ11: 2403504.137 | AK11: 4671172.382
A12: 1382 | B12: 28446.0063 | C12: 0.05 | D12: 4000 | E12: 710 | P12: 28446 | Q12: 36434 | R12: 42784 | S12: 53312.4 | T12: 62250 | U12: 75762.5 | V12: 91780.625 | W12: 107216.2688 | X12: 118689.2449 | Y12: 141590.492 | Z12: 178234.5412 | AA12: 225732.6862 | AB12: 274107.2428 | AC12: 322482.2568 | AD12: 384948.1276 | AE12: 470190.7329 | AF12: 641697.5282 | AG12: 827618.1574 | AH12: 1172250.878 | AI12: 1859428.212 | AJ12: 2403504.137 | AK12: 4671172.382
A13: 1383 | B13: 35534.0063 | C13: 0 | D13: 7088 | E13: 900 | Q13: 35534 | R13: 41884 | S13: 52322.4 | T13: 62250 | U13: 75762.5 | V13: 91780.625 | W13: 107216.2688 | X13: 118689.2449 | Y13: 141590.492 | Z13: 178234.5412 | AA13: 225732.6862 | AB13: 274107.2428 | AC13: 322482.2568 | AD13: 384948.1276 | AE13: 470190.7329 | AF13: 641697.5282 | AG13: 827618.1574 | AH13: 1172250.878 | AI13: 1859428.212 | AJ13: 2403504.137 | AK13: 4671172.382
A14: 1384 | B14: 40864.0063 | C14: 0 | D14: 5330 | E14: 1020 | R14: 40864 | S14: 51250 | T14: 62250 | U14: 75762.5 | V14: 91780.625 | W14: 107216.2688 | X14: 118689.2449 | Y14: 141590.492 | Z14: 178234.5412 | AA14: 225732.6862 | AB14: 274107.2428 | AC14: 322482.2568 | AD14: 384948.1276 | AE14: 470190.7329 | AF14: 641697.5282 | AG14: 827618.1574 | AH14: 1172250.878 | AI14: 1859428.212 | AJ14: 2403504.137 | AK14: 4671172.382
A15: 1385 | B15: 50000 | C15: 0.1 | D15: 5000 | E15: 1250 | S15: 50000 | T15: 62250 | U15: 75762.5 | V15: 91780.625 | W15: 107216.2688 | X15: 118689.2449 | Y15: 141590.492 | Z15: 178234.5412 | AA15: 225732.6862 | AB15: 274107.2428 | AC15: 322482.2568 | AD15: 384948.1276 | AE15: 470190.7329 | AF15: 641697.5282 | AG15: 827618.1574 | AH15: 1172250.878 | AI15: 1859428.212 | AJ15: 2403504.137 | AK15: 4671172.382
A16: 1386 | B16: 61000 | C16: 0.1 | D16: 0 | E16: 1250 | T16: 61000 | U16: 74450 | V16: 90402.5 | W16: 105741.675 | X16: 117126.1755 | Y16: 139918.0078 | Z16: 176394.8086 | AA16: 223672.1856 | AB16: 271696.4571 | AC16: 319733.9611 | AD16: 381870.0365 | AE16: 466792.5203 | AF16: 637857.5479 | AG16: 823202.1801 | AH16: 1166686.747 | AI16: 1851749.711 | AJ16: 2394213.15 | AK16: 4656210.177
A17: 1387 | B17: 73200 | C17: 0.05 | D17: 9150 | E17: 1250 | U17: 73200 | V17: 89090 | W17: 104337.3 | X17: 115637.538 | Y17: 138325.1657 | Z17: 174642.6822 | AA17: 221709.8041 | AB17: 269400.4708 | AC17: 317116.5367 | AD17: 378938.5211 | AE17: 463556.1273 | AF17: 634200.4238 | AG17: 818996.4874 | AH17: 1161387.574 | AI17: 1844436.852 | AJ17: 2385364.591 | AK17: 4641960.458
A18: 1388 | B18: 87840 | C18: 0.05 | D18: 10980 | E18: 1250 | V18: 87840 | W18: 102999.8 | X18: 114219.788 | Y18: 136808.1732 | Z18: 172973.9905 | AA18: 219840.8693 | AB18: 267213.8171 | AC18: 314623.7515 | AD18: 376146.6017 | AE18: 460473.8483 | AF18: 630717.4486 | AG18: 814991.0658 | AH18: 1156340.743 | AI18: 1837472.225 | AJ18: 2376937.393 | AK18: 4628389.297
A19: 1389 | B19: 100999.8 | C19: 0.07 | D19: 7011 | E19: 2000 | W19: 101000 | X19: 112100 | Y19: 134540 | Z19: 170479 | AA19: 217046.48 | AB19: 263944.3816 | AC19: 310896.595 | AD19: 371972.1864 | AE19: 455865.2938 | AF19: 625509.782 | AG19: 809002.2493 | AH19: 1148794.834 | AI19: 1827058.871 | AJ19: 2364337.234 | AK19: 4608098.002
A20: 1390 | B20: 110099.788 | C20: 0.06 | D20: 3040 | E20: 2000 | X20: 110100 | Y20: 132400 | Z20: 168125 | AA20: 214410 | AB20: 260859.7 | AC20: 307380.058 | AD20: 368033.665 | AE20: 451517.1661 | AF20: 620596.3977 | AG20: 803351.8574 | AH20: 1141675.34 | AI20: 1817233.97 | AJ20: 2352449.103 | AK20: 4588953.356
A21: 1391 | B21: 129899.7732 | C21: 0.07 | D21: 12093 | E21: 2500 | Y21: 129900 | Z21: 165375 | AA21: 211330 | AB21: 257256.1 | AC21: 303271.954 | AD21: 363432.5885 | AE21: 446437.5777 | AF21: 614856.4628 | AG21: 796750.9322 | AH21: 1133358.175 | AI21: 1805756.281 | AJ21: 2338561.1 | AK21: 4566588.115
A22: 1392 | B22: 162374.7505 | C22: 0.1 | D22: 19485 | E22: 3000 | Z22: 162375 | AA22: 207970 | AB22: 253324.9 | AC22: 298790.386 | AD22: 358413.2323 | AE22: 440896.2085 | AF22: 608594.7156 | AG22: 789549.9229 | AH22: 1124284.903 | AI22: 1793235.166 | AJ22: 2323410.551 | AK22: 4542189.671
A23: 1393 | B23: 202969.7205 | C23: 0.12 | D23: 21110 | E23: 5000 | AA23: 202970 | AB23: 247474.9 | AC23: 292121.386 | AD23: 350943.9523 | AE23: 432650.1234 | AF23: 599276.6394 | AG23: 778834.1353 | AH23: 1110783.01 | AI23: 1774602.554 | AJ23: 2300865.091 | AK23: 4505882.462
A24: 1394 | B24: 237474.573 | C24: 0.17 | D24: 0 | E24: 10000 | AB24: 237470 | AC24: 280715.8 | AD24: 338169.696 | AE24: 418547.3444 | AF24: 583340.4992 | AG24: 760507.574 | AH24: 1087691.543 | AI24: 1742736.33 | AJ24: 2262306.959 | AK24: 4443788.447
A25: 1395 | B25: 270721.0132 | C25: 0.14 | D25: 0 | E25: 10000 | AC25: 270722 | AD25: 326976.64 | AE25: 406190.2106 | AF25: 569376.9379 | AG25: 744449.4786 | AH25: 1067458.343 | AI25: 1714814.513 | AJ25: 2228521.561 | AK25: 4389380.442
A26: 1396 | B26: 309975.5348 | C26: 0.12 | D26: 6768 | E26: 17000 | AD26: 309977 | AE26: 387422.608 | AF26: 548169.547 | AG26: 720060.9791 | AH26: 1036728.834 | AI26: 1672407.79 | AJ26: 2177209.426 | AK26: 4306747.38
A27: 1397 | B27: 370420.9905 | C27: 0.104 | D27: 28208 | E27: 17000 | AE27: 370423 | AF27: 528959.99 | AG27: 697969.9885 | AH27: 1008894.186 | AI27: 1633995.976 | AJ27: 2130731.131 | AK27: 4231898.733
A28: 1398 | B28: 505624.7192 | C28: 0.13 | D28: 87049 | E28: 23333 | AF28: 505627 | AG28: 671137.05 | AH28: 975084.683 | AI28: 1587338.863 | AJ28: 2074276.024 | AK28: 4140983.429
A29: 1399 | B29: 636809 | C29: 0.15 | D29: 56333 | E29: 33333 | AG29: 636809 | AH29: 931831.34 | AI29: 1527649.249 | AJ29: 2002051.592 | AK29: 4024673.203
A30: 1400 | B30: =ROUNDUP((B29+(B29*C30)+D30),0) -> 885165 | C30: 0.26 | D30: 82785 | E30: 46667 | AH30: 885165 | AI30: 1463249.7 | AJ30: 1924128.137 | AK30: 3899185.272
A31: 1401 | B31: =(B30+(B30*C31)+D31) -> 1393249.7 | C31: 0.38 | D31: 171722 | E31: 70000 | AI31: 1393250 | AJ31: 1839428.5 | AK31: 3762784.976
A32: 1402 | B32: 1769428.137 | C32: 0.21 | D32: 83596 | E32: 70000 | AJ32: 1769428 | AK32: 3650056.171
A33: 1403 | B33: 2388728.327 | C33: 0.22 | D33: 230026 | E33: 70000 | AK33: 3557656.392
A34: 1404 | AK34: 3463656
A35: 1405 | B35: 5541850 | C35: 0.45 | D35: 519549 | E35: 166666 | AK35: 5541850

Sheet Sheet2 (hidden)
C3: وضعیت تاهل
C4: مجرد
C5: متاهل

Sheet اطلاعات (hidden)
A1: آیتم های حقوق سال 1405 | B1: روزانه (ریال) | C1: ماهانه (ریال) | E1: سابقه (سال) | F1: پایه سنوات تجمیعی سال 1405 | I1: ماه | J1: تعداد روز
A2: حداقل دستمزد | B2: 5541850 | C2: =B2*30 -> 166255500 | E2: 0 | F2: 0 | I2: فروردین | J2: 31
A3: بن کارگری | C3: 22000000 | E3: 1 | F3: 116666 | I3: اردیبهشت | J3: 31
A4: حق مسکن | C4: 30000000 | E4: 2 | F4: 94000 | I4: خرداد | J4: 31
A5: حق تاهل | C5: 5000000 | E5: 3 | F5: 186400 | I5: تیر | J5: 31
A6: حق اولاد | C6: =حداقل_دستمزد*3 -> 16625550 | E6: 4 | F6: 299128 | I6: مرداد | J6: 31
A7: پایه سنوات (با یک سال سابقه) | B7: 116666 | C7: =B7*30 -> 3499980 | E7: 5 | F7: 435529 | I7: شهریور | J7: 31
E8: 6 | F8: 561017 | I8: مهر | J8: 30
A9: نیروی مجرد (بدون سابقه) | C9: =SUM(C2:C4) -> 218255500 | E9: 7 | F9: 673958 | I9: آبان | J9: 30
A10: نیروی مجرد (با یک سال سابقه) | C10: =SUM(C2:C4,C7) -> 221755480 | E10: 8 | F10: 764873 | I10: آذر | J10: 30
A11: نیروی متاهل (بدون فرزند، بدون سابقه) | C11: =SUM(C2:C5) -> 223255500 | E11: 9 | F11: 839722 | I11: دی | J11: 30
A12: نیروی متاهل (با یک فرزند، بدون سابقه) | C12: =SUM(C2:C6) -> 239881050 | E12: 10 | F12: 922359 | I12: بهمن | J12: 30
A13: نیروی متاهل (بدون فرزند، با یک سال سابقه) | C13: =SUM(C2:C7,-C6) -> 226755480 | E13: 11 | F13: 976799 | I13: اسفند | J13: 29
A14: نیروی متاهل (با یک فرزند، با یک سال سابقه) | C14: =SUM(C2:C7) -> 243381030 | E14: 12 | F14: 1038860
E15: 13 | F15: 1075168
E16: 14 | F16: 1099568
E17: 15 | F17: 1121934
E18: 16 | F18: 1141081
E19: 17 | F19: 1161373
E20: 18 | F20: 1174944
E21: 19 | F21: 1189193
E22: 20 | F22: 1204156
E23: 21 | F23: 1220615
E24: 22 | F24: 1235386
E25: 23 | F25: 1248422
E26: 24 | F26: 1258705
E27: 25 | F27: 1267521
E28: 26 | F28: 1275000
E29: 27 | F29: 1281327
E30: 28 | F30: 1285196
E31: 29 | F31: 1288468
E32: 30 | F32: 1291772
E33: 31 | F33: 1295768

Sheet محاسبات (hidden)
D1: 30
D3: 30
A4: تاریخ استخدام | B4: 1390/07/25 | C4: <<= تاریخ استخدام را کامل بنویسید، مثال =>> 1402/06/08
A5: انتخاب ماه | B5: آبان | C5: <<= از لیست کشویی ماه را انتخاب کنید
A6: تاریخ محاسبه حقوق | B6: 1404/08/30 | C6: <<= این آیتم به صورت خودکار محاسبه می شود
A7: روزهای کارکرد | B7: 30 | C7: ="<<= در صورتیکه کارکرد کمتر از "&D1&" روز است به صورت دستی بنویسید " -> <<= در صورتیکه کارکرد کمتر از 30 روز است به صورت دستی بنویسید
A8: وضعیت تاهل | B8: متاهل | C8: <<= از لیست کشویی وضعیت تاهل را انتخاب کنید
A9: تعداد فرزند | B9: 2 | C9: <<= تعداد فرزندان را وارد کنید (عامل محاسبه حق اولاد)
A10: سابقه به سال | B10: =IFERROR(INT((MATCH(B6,تقویم!B:B,0)-MATCH(B4,تقویم!B:B,0))/365.25),0) -> 14 | C10: <<= سابقه در کارگاه کنونی، به صورت خودکار محاسبه می شود (عامل محاسبه پایه سنوات)
A11: سابقه بیمه به روز | B11: 720 | C11: <<= سابقه بیمه را به روز وارد کنید (عامل محاسبه حق اولاد)
A13: پایه حقوق | B13: 103909680 | C13: <<= این آیتم تحت تاثیر روزهای کارکرد است
A14: بن کارگری | B14: 22000000 | C14: <<= این آیتم تحت تاثیر روزهای کارکرد است
A15: حق مسکن | B15: 9000000 | C15: <<= این آیتم تحت تاثیر روزهای کارکرد است
A16: حق عائله مندی | B16: 5000000 | C16: <<= این آیتم تحت تاثیر وضعیت تاهل و روزهای کارکرد است
A17: حق اولاد | B17: 20781936 | C17: <<= این آیتم تحت تاثیر وضعیت تاهل، سابقه بیمه، تعداد فرزند و روزهای کارکرد است
A18: پایه سنوات | B18: 33658020 | C18: <<= این آیتم تحت تاثیر سابقه شخص در کارگاه کنونی است
A20: جمع ناخالص حقوق و مزایا | B20: =SUM(B13:B18) -> 194349636 | C20: <<= مبلغ محاسبه شده به معنای مبلغ قابل پرداخت نیست و باید کسورات قانونی نیز از آن کسر شود

Sheet تقویم (hidden)
A1: میلادی | B1: شمسی
A2: 1991-03-21 | B2: 1370/01/01
A3: 1991-03-22 | B3: 1370/01/02
A4: 1991-03-23 | B4: 1370/01/03
A5: 1991-03-24 | B5: 1370/01/04
A6: 1991-03-25 | B6: 1370/01/05
A7: 1991-03-26 | B7: 1370/01/06
A8: 1991-03-27 | B8: 1370/01/07
A9: 1991-03-28 | B9: 1370/01/08
A10: 1991-03-29 | B10: 1370/01/09
A11: 1991-03-30 | B11: 1370/01/10
A12: 1991-03-31 | B12: 1370/01/11
A13: 1991-04-01 | B13: 1370/01/12
A14: 1991-04-02 | B14: 1370/01/13
A15: 1991-04-03 | B15: 1370/01/14
A16: 1991-04-04 | B16: 1370/01/15
A17: 1991-04-05 | B17: 1370/01/16
A18: 1991-04-06 | B18: 1370/01/17
A19: 1991-04-07 | B19: 1370/01/18
A20: 1991-04-08 | B20: 1370/01/19
A21: 1991-04-09 | B21: 1370/01/20
A22: 1991-04-10 | B22: 1370/01/21
A23: 1991-04-11 | B23: 1370/01/22
A24: 1991-04-12 | B24: 1370/01/23
A25: 1991-04-13 | B25: 1370/01/24
A26: 1991-04-14 | B26: 1370/01/25
A27: 1991-04-15 | B27: 1370/01/26
A28: 1991-04-16 | B28: 1370/01/27
A29: 1991-04-17 | B29: 1370/01/28
A30: 1991-04-18 | B30: 1370/01/29
A31: 1991-04-19 | B31: 1370/01/30
A32: 1991-04-20 | B32: 1370/01/31
A33: 1991-04-21 | B33: 1370/02/01
A34: 1991-04-22 | B34: 1370/02/02
A35: 1991-04-23 | B35: 1370/02/03
A36: 1991-04-24 | B36: 1370/02/04
A37: 1991-04-25 | B37: 1370/02/05
A38: 1991-04-26 | B38: 1370/02/06
A39: 1991-04-27 | B39: 1370/02/07
A40: 1991-04-28 | B40: 1370/02/08
A41: 1991-04-29 | B41: 1370/02/09
A42: 1991-04-30 | B42: 1370/02/10
A43: 1991-05-01 | B43: 1370/02/11
A44: 1991-05-02 | B44: 1370/02/12
A45: 1991-05-03 | B45: 1370/02/13
A46: 1991-05-04 | B46: 1370/02/14
A47: 1991-05-05 | B47: 1370/02/15
A48: 1991-05-06 | B48: 1370/02/16
A49: 1991-05-07 | B49: 1370/02/17
A50: 1991-05-08 | B50: 1370/02/18
A51: 1991-05-09 | B51: 1370/02/19
A52: 1991-05-10 | B52: 1370/02/20
A53: 1991-05-11 | B53: 1370/02/21
A54: 1991-05-12 | B54: 1370/02/22
A55: 1991-05-13 | B55: 1370/02/23
A56: 1991-05-14 | B56: 1370/02/24
A57: 1991-05-15 | B57: 1370/02/25
A58: 1991-05-16 | B58: 1370/02/26
A59: 1991-05-17 | B59: 1370/02/27
A60: 1991-05-18 | B60: 1370/02/28
A61: 1991-05-19 | B61: 1370/02/29
A62: 1991-05-20 | B62: 1370/02/30
A63: 1991-05-21 | B63: 1370/02/31
A64: 1991-05-22 | B64: 1370/03/01
A65: 1991-05-23 | B65: 1370/03/02
A66: 1991-05-24 | B66: 1370/03/03
A67: 1991-05-25 | B67: 1370/03/04
A68: 1991-05-26 | B68: 1370/03/05
A69: 1991-05-27 | B69: 1370/03/06
A70: 1991-05-28 | B70: 1370/03/07
A71: 1991-05-29 | B71: 1370/03/08
A72: 1991-05-30 | B72: 1370/03/09
A73: 1991-05-31 | B73: 1370/03/10
A74: 1991-06-01 | B74: 1370/03/11
A75: 1991-06-02 | B75: 1370/03/12
A76: 1991-06-03 | B76: 1370/03/13
A77: 1991-06-04 | B77: 1370/03/14
A78: 1991-06-05 | B78: 1370/03/15
A79: 1991-06-06 | B79: 1370/03/16
A80: 1991-06-07 | B80: 1370/03/17
A81: 1991-06-08 | B81: 1370/03/18
A82: 1991-06-09 | B82: 1370/03/19
A83: 1991-06-10 | B83: 1370/03/20
A84: 1991-06-11 | B84: 1370/03/21
A85: 1991-06-12 | B85: 1370/03/22
A86: 1991-06-13 | B86: 1370/03/23
A87: 1991-06-14 | B87: 1370/03/24
A88: 1991-06-15 | B88: 1370/03/25
A89: 1991-06-16 | B89: 1370/03/26
A90: 1991-06-17 | B90: 1370/03/27
A91: 1991-06-18 | B91: 1370/03/28
A92: 1991-06-19 | B92: 1370/03/29
A93: 1991-06-20 | B93: 1370/03/30
A94: 1991-06-21 | B94: 1370/03/31
A95: 1991-06-22 | B95: 1370/04/01
A96: 1991-06-23 | B96: 1370/04/02
A97: 1991-06-24 | B97: 1370/04/03
A98: 1991-06-25 | B98: 1370/04/04
A99: 1991-06-26 | B99: 1370/04/05
A100: 1991-06-27 | B100: 1370/04/06
A101: 1991-06-28 | B101: 1370/04/07
A102: 1991-06-29 | B102: 1370/04/08
A103: 1991-06-30 | B103: 1370/04/09
A104: 1991-07-01 | B104: 1370/04/10
A105: 1991-07-02 | B105: 1370/04/11
A106: 1991-07-03 | B106: 1370/04/12
A107: 1991-07-04 | B107: 1370/04/13
A108: 1991-07-05 | B108: 1370/04/14
A109: 1991-07-06 | B109: 1370/04/15
A110: 1991-07-07 | B110: 1370/04/16
A111: 1991-07-08 | B111: 1370/04/17
A112: 1991-07-09 | B112: 1370/04/18
A113: 1991-07-10 | B113: 1370/04/19
A114: 1991-07-11 | B114: 1370/04/20
A115: 1991-07-12 | B115: 1370/04/21
A116: 1991-07-13 | B116: 1370/04/22
A117: 1991-07-14 | B117: 1370/04/23
A118: 1991-07-15 | B118: 1370/04/24
A119: 1991-07-16 | B119: 1370/04/25
A120: 1991-07-17 | B120: 1370/04/26
A121: 1991-07-18 | B121: 1370/04/27
A122: 1991-07-19 | B122: 1370/04/28
A123: 1991-07-20 | B123: 1370/04/29
A124: 1991-07-21 | B124: 1370/04/30
A125: 1991-07-22 | B125: 1370/04/31
A126: 1991-07-23 | B126: 1370/05/01
A127: 1991-07-24 | B127: 1370/05/02
A128: 1991-07-25 | B128: 1370/05/03
A129: 1991-07-26 | B129: 1370/05/04
A130: 1991-07-27 | B130: 1370/05/05
A131: 1991-07-28 | B131: 1370/05/06
A132: 1991-07-29 | B132: 1370/05/07
A133: 1991-07-30 | B133: 1370/05/08
A134: 1991-07-31 | B134: 1370/05/09
A135: 1991-08-01 | B135: 1370/05/10
A136: 1991-08-02 | B136: 1370/05/11
A137: 1991-08-03 | B137: 1370/05/12
A138: 1991-08-04 | B138: 1370/05/13
A139: 1991-08-05 | B139: 1370/05/14
A140: 1991-08-06 | B140: 1370/05/15
A141: 1991-08-07 | B141: 1370/05/16
A142: 1991-08-08 | B142: 1370/05/17
A143: 1991-08-09 | B143: 1370/05/18
A144: 1991-08-10 | B144: 1370/05/19
A145: 1991-08-11 | B145: 1370/05/20
A146: 1991-08-12 | B146: 1370/05/21
A147: 1991-08-13 | B147: 1370/05/22
A148: 1991-08-14 | B148: 1370/05/23
A149: 1991-08-15 | B149: 1370/05/24
A150: 1991-08-16 | B150: 1370/05/25
A151: 1991-08-17 | B151: 1370/05/26
A152: 1991-08-18 | B152: 1370/05/27
A153: 1991-08-19 | B153: 1370/05/28
A154: 1991-08-20 | B154: 1370/05/29
A155: 1991-08-21 | B155: 1370/05/30
A156: 1991-08-22 | B156: 1370/05/31
A157: 1991-08-23 | B157: 1370/06/01
A158: 1991-08-24 | B158: 1370/06/02
A159: 1991-08-25 | B159: 1370/06/03
A160: 1991-08-26 | B160: 1370/06/04
A161: 1991-08-27 | B161: 1370/06/05
A162: 1991-08-28 | B162: 1370/06/06
A163: 1991-08-29 | B163: 1370/06/07
A164: 1991-08-30 | B164: 1370/06/08
A165: 1991-08-31 | B165: 1370/06/09
A166: 1991-09-01 | B166: 1370/06/10
A167: 1991-09-02 | B167: 1370/06/11
A168: 1991-09-03 | B168: 1370/06/12
A169: 1991-09-04 | B169: 1370/06/13
A170: 1991-09-05 | B170: 1370/06/14
A171: 1991-09-06 | B171: 1370/06/15
A172: 1991-09-07 | B172: 1370/06/16
A173: 1991-09-08 | B173: 1370/06/17
A174: 1991-09-09 | B174: 1370/06/18
A175: 1991-09-10 | B175: 1370/06/19
A176: 1991-09-11 | B176: 1370/06/20
A177: 1991-09-12 | B177: 1370/06/21
A178: 1991-09-13 | B178: 1370/06/22
A179: 1991-09-14 | B179: 1370/06/23
A180: 1991-09-15 | B180: 1370/06/24
A181: 1991-09-16 | B181: 1370/06/25
A182: 1991-09-17 | B182: 1370/06/26
A183: 1991-09-18 | B183: 1370/06/27
A184: 1991-09-19 | B184: 1370/06/28
A185: 1991-09-20 | B185: 1370/06/29
A186: 1991-09-21 | B186: 1370/06/30
A187: 1991-09-22 | B187: 1370/06/31
A188: 1991-09-23 | B188: 1370/07/01
A189: 1991-09-24 | B189: 1370/07/02
A190: 1991-09-25 | B190: 1370/07/03
A191: 1991-09-26 | B191: 1370/07/04
A192: 1991-09-27 | B192: 1370/07/05
A193: 1991-09-28 | B193: 1370/07/06
A194: 1991-09-29 | B194: 1370/07/07
A195: 1991-09-30 | B195: 1370/07/08
A196: 1991-10-01 | B196: 1370/07/09
A197: 1991-10-02 | B197: 1370/07/10
A198: 1991-10-03 | B198: 1370/07/11
A199: 1991-10-04 | B199: 1370/07/12
A200: 1991-10-05 | B200: 1370/07/13
... 16237 more rows
